bitfinex/quotes_BTCUSD_20250615
["timestamp","ask_amount","ask_price","bid_price","bid_amount"]
[1750001889508,1.3533263,105890.0,105880.0,0.28220705]
[1750001889938,1.3533263,105890.0,105880.0,0.28220704]
[1750001890159,1.3533263,105890.0,105880.0,0.26447787]
[1750001890421,1.3533263,105890.0,105880.0,0.28220704]
[1750001890853,1.3533263,105890.0,105880.0,0.28220705]
[1750001891303,1.3533263,105890.0,105880.0,0.26447787]
[1750001891521,1.3533263,105890.0,105880.0,0.28220704]
[1750001891731,1.3533263,105890.0,105880.0,0.28220705]
[1750001892593,1.3533263,105890.0,105880.0,0.28220702]
[1750001892810,1.3533263,105890.0,105880.0,0.28220703]
[1750001893030,1.44947552,105890.0,105880.0,0.28220703]
[1750001893451,1.44947552,105890.0,105880.0,0.28220705]
[1750001893900,1.44947552,105890.0,105880.0,0.26447787]
[1750001894113,1.1997263,105890.0,105880.0,0.28220705]
[1750001894340,1.3533263,105890.0,105880.0,0.26447787]
[1750001894559,1.1997263,105890.0,105880.0,0.28220705]
[1750001894779,1.3533263,105890.0,105880.0,0.28220559]
[1750001895019,1.3533263,105890.0,105880.0,0.28220558]
[1750001895239,1.3533263,105890.0,105880.0,0.26447787]
[1750001895472,1.3533263,105890.0,105880.0,0.28220559]
[1750001896900,1.3533263,105890.0,105880.0,0.26447787]
[1750001897130,1.3533263,105890.0,105880.0,0.28220559]
[1750001898550,1.3533263,105890.0,105880.0,0.26447787]
[1750001898806,1.3533263,105890.0,105880.0,0.28220559]
[1750001899045,1.3533263,105890.0,105880.0,0.26447787]
[1750001899520,1.3533263,105890.0,105880.0,0.28220559]
[1750001900198,1.3533263,105890.0,105880.0,0.26447787]
[1750001900450,1.3533263,105890.0,105880.0,0.28220559]
[1750001900938,1.3533263,105890.0,105880.0,0.26447787]
[1750001901215,1.3533263,105890.0,105880.0,0.28220559]
[1750001901451,1.3533263,105890.0,105880.0,0.26447787]
[1750001901680,1.3533263,105890.0,105880.0,0.28220559]
[1750001901896,1.44947552,105890.0,105880.0,0.26447787]
[1750001902127,1.3533263,105890.0,105880.0,0.28220559]
[1750001902836,1.3533263,105890.0,105880.0,0.26447787]
[1750001903075,1.3533263,105890.0,105880.0,0.28220559]
[1750001903291,1.3533263,105890.0,105880.0,0.26447787]
[1750001903734,1.36276925,105890.0,105880.0,0.28220559]
[1750001904219,1.36276925,105890.0,105880.0,0.26447787]
[1750001904461,1.36276925,105890.0,105880.0,0.28220559]
[1750001904671,1.41937201,105890.0,105880.0,0.28220705]
[1750001905103,1.42881496,105890.0,105880.0,0.28220705]
[1750001905555,1.42881496,105890.0,105880.0,0.28220707]
[1750001905993,1.20647628,105890.0,105880.0,0.28220707]
[1750001906207,1.19703333,105890.0,105880.0,0.28220707]
[1750001906664,1.19703333,105890.0,105880.0,0.26447787]
[1750001906873,1.22536326,105890.0,105880.0,0.25503367]
[1750001907079,1.22536317,105890.0,105880.0,0.27276321]
[1750001907290,1.21591968,105890.0,105880.0,0.22667024]
[1750001907494,1.23480675,105890.0,105880.0,0.22667024]
[1750001907734,1.23480675,105890.0,105880.0,0.24440013]
[1750001907956,1.22536317,105890.0,105880.0,0.22667024]
[1750001908167,1.22536317,105890.0,105880.0,0.24440021]
[1750001908587,1.22536317,105890.0,105880.0,0.22667024]
[1750001908803,1.21591968,105890.0,105880.0,0.24440021]
[1750001909022,1.21591968,105890.0,105880.0,0.22667024]
[1750001909235,0.44998875,105890.0,105880.0,0.24440021]
[1750001909445,1.14039057,105890.0,105880.0,0.24439988]
[1750001909699,1.13094762,105890.0,105880.0,0.24439969]
[1750001909927,1.14039066,105890.0,105880.0,0.22667024]
[1750001910157,1.14039066,105890.0,105880.0,0.24439966]
[1750001910387,1.14039066,105890.0,105880.0,0.24439968]
[1750001911083,1.18558079,105890.0,105880.0,0.24439968]
[1750001911493,1.19502401,105890.0,105880.0,0.24439968]
[1750001911924,1.18558079,105890.0,105880.0,0.22667024]
[1750001912353,1.18558079,105890.0,105880.0,0.24439968]
[1750001913237,1.18558079,105890.0,105880.0,0.22667024]
[1750001913454,1.14039057,105890.0,105880.0,0.22667024]
[1750001913663,1.14039057,105890.0,105880.0,0.24439968]
[1750001914084,1.14039057,105890.0,105880.0,0.22667024]
[1750001914317,1.14039057,105890.0,105880.0,0.24439968]
[1750001914961,1.14983361,105890.0,105880.0,0.24439369]
[1750001915181,1.17243141,105890.0,105880.0,0.24439369]
[1750001915628,1.18187454,105890.0,105880.0,0.24439369]
[1750001916662,1.18187454,105890.0,105880.0,0.22667024]
[1750001916878,1.18187454,105890.0,105880.0,0.24439369]
[1750001917504,1.18187454,105890.0,105880.0,0.22667024]
[1750001917977,1.18187454,105890.0,105880.0,0.24439369]
[1750001918359,1.18187454,105890.0,105880.0,0.22667024]
[1750001918584,1.18187454,105890.0,105880.0,0.24439369]
[1750001918981,1.17243141,105890.0,105880.0,0.24439369]
[1750001919985,1.17243141,105890.0,105880.0,0.22667024]
[1750001920189,1.17243141,105890.0,105880.0,0.24439369]
[1750001920837,1.17243141,105890.0,105880.0,0.22667024]
[1750001921035,0.56954379,105890.0,105880.0,0.24439369]
[1750001921285,1.17243141,105890.0,105880.0,0.24439369]
[1750001921472,1.17243141,105890.0,105880.0,0.22667024]
[1750001921682,1.17243141,105890.0,105880.0,0.24439369]
[1750001921891,1.17243141,105890.0,105880.0,0.22667024]
[1750001922123,1.17243141,105890.0,105880.0,0.24439369]
[1750001922727,1.17243141,105890.0,105880.0,0.22667024]
[1750001922938,1.17243141,105890.0,105880.0,0.24439369]
[1750001923699,1.16298837,105890.0,105880.0,0.24439369]
[1750001924115,1.13094762,105890.0,105880.0,0.22667024]
[1750001924530,0.97738762,105890.0,105880.0,0.24439369]
[1750001924745,1.13094762,105890.0,105880.0,0.24439966]
[1750001924957,1.13094762,105890.0,105880.0,0.22667024]
[1750001925371,1.13094762,105890.0,105880.0,0.24439966]
[1750001925784,1.13094762,105890.0,105880.0,0.22667024]
[1750001926243,1.13094762,105890.0,105880.0,0.24439965]
[1750001926452,1.14039066,105890.0,105880.0,0.22667024]
[1750001926878,1.14039066,105890.0,105880.0,0.24439967]
[1750001927084,1.14039066,105890.0,105880.0,0.22667024]
[1750001927524,1.13094762,105890.0,105880.0,0.24439968]
[1750001927933,1.13094762,105890.0,105880.0,0.22667024]
[1750001928350,1.13094762,105890.0,105880.0,0.24439968]
[1750001929204,1.14039066,105890.0,105880.0,0.22667024]
[1750001929668,1.13094762,105890.0,105880.0,0.22667024]
[1750001929881,1.13094762,105890.0,105880.0,0.24439968]
[1750001930100,1.13094762,105890.0,105880.0,0.24439969]
[1750001930303,1.13094762,105890.0,105880.0,0.22667024]
[1750001930739,1.13094762,105890.0,105880.0,0.24439969]
[1750001930961,1.13094762,105890.0,105880.0,0.24439968]
[1750001931208,1.13094762,105890.0,105880.0,0.22667024]
[1750001931633,1.13094762,105890.0,105880.0,0.24439968]
[1750001931855,1.13094762,105890.0,105880.0,0.24439969]
[1750001932068,1.13094762,105890.0,105880.0,0.22667024]
[1750001932525,1.13094762,105890.0,105880.0,0.24439969]
[1750001932749,1.13094762,105890.0,105880.0,0.24439968]
[1750001933156,1.13094762,105890.0,105880.0,0.22667024]
[1750001933352,1.13094762,105890.0,105880.0,0.24439968]
[1750001933921,1.11574762,105890.0,105880.0,0.24439968]
[1750001934134,1.11574762,105890.0,105880.0,0.27276298]
[1750001934331,1.11574762,105890.0,105880.0,0.25503367]
[1750001934536,1.11574762,105890.0,105880.0,0.27276186]
[1750001934869,1.11574762,105890.0,105880.0,0.27276183]
[1750001935733,0.96218762,105890.0,105880.0,0.27276183]
[1750001935941,1.11574762,105890.0,105880.0,0.27276181]
[1750001936368,1.10044762,105890.0,105880.0,0.25503367]
[1750001936578,1.10044762,105890.0,105880.0,0.27276181]
[1750001936781,1.10044762,105890.0,105880.0,0.27276178]
[1750001936994,1.10044762,105890.0,105880.0,0.27276184]
[1750001937204,1.10044762,105890.0,105880.0,0.25503367]
[1750001937398,1.10044762,105890.0,105880.0,0.27276184]
[1750001937605,1.10044762,105890.0,105880.0,0.27276183]
[1750001938057,1.10044762,105890.0,105880.0,0.25503367]
[1750001938288,1.10044762,105890.0,105880.0,0.27276181]
[1750001938516,1.10044762,105890.0,105880.0,0.27276162]
[1750001938727,1.10044762,105890.0,105880.0,0.27276163]
[1750001938940,1.10044762,105890.0,105880.0,0.27276165]
[1750001939155,1.10044762,105890.0,105880.0,0.25503367]
[1750001939574,1.10044762,105890.0,105880.0,0.27276166]
[1750001939804,1.10044762,105890.0,105880.0,0.25503367]
[1750001940018,1.10044762,105890.0,105880.0,0.27276167]
[1750001940261,0.49756,105890.0,105880.0,0.25503367]
[1750001940504,1.10044762,105890.0,105880.0,0.25503367]
[1750001940756,1.10044762,105890.0,105880.0,0.27276157]
[1750001940983,1.11644762,105890.0,105880.0,0.25503367]
[1750001941215,1.11644762,105890.0,105880.0,0.27276155]
[1750001941459,1.11644762,105890.0,105880.0,0.27276159]
[1750001941882,1.11644762,105890.0,105880.0,0.27276147]
[1750001942096,1.11644762,105890.0,105880.0,0.27276153]
[1750001942304,1.11644762,105890.0,105880.0,0.27276149]
[1750001942754,1.11644762,105890.0,105880.0,0.27276146]
[1750001943059,1.11644762,105890.0,105880.0,0.27276145]
[1750001943211,1.11644762,105890.0,105880.0,0.25503367]
[1750001943428,1.11644762,105890.0,105880.0,0.27276149]
[1750001943645,1.11644762,105890.0,105880.0,0.27276152]
[1750001943850,1.11644762,105890.0,105880.0,0.25503367]
[1750001944058,1.11644762,105890.0,105880.0,0.27276152]
[1750001944591,1.11644762,105890.0,105880.0,0.27276151]
[1750001944739,1.11644762,105890.0,105880.0,0.27276262]
[1750001945159,1.11644762,105890.0,105880.0,0.2727551]
[1750001945585,1.11644762,105890.0,105880.0,0.27275511]
[1750001945762,1.11644762,105890.0,105880.0,0.27275509]
[1750001946815,1.11644762,105890.0,105880.0,0.27275511]
[1750001947236,1.11644762,105890.0,105880.0,0.27275514]
[1750001947454,1.11644762,105890.0,105880.0,0.27275513]
[1750001947675,1.11644762,105890.0,105880.0,0.27275514]
[1750001948316,1.13264762,105890.0,105880.0,0.25503367]
[1750001948733,1.13264762,105890.0,105880.0,0.27275513]
[1750001948952,1.11644762,105890.0,105880.0,0.27275513]
[1750001949162,1.11644762,105890.0,105880.0,0.25503367]
[1750001949426,1.11644762,105890.0,105880.0,0.27275509]
[1750001949635,1.11644762,105890.0,105880.0,0.25503367]
[1750001949860,1.11644762,105890.0,105880.0,0.27275508]
[1750001950114,1.11644762,105890.0,105880.0,0.27275502]
[1750001950342,0.004,105890.0,105880.0,0.98778439]
[1750001950572,0.004,105890.0,105880.0,1.18293998]
[1750001950786,0.004,105890.0,105880.0,1.22249998]
[1750001951002,0.004,105890.0,105880.0,1.25911035]
[1750001951227,0.004,105890.0,105880.0,1.25911024]
[1750001951467,0.004,105890.0,105880.0,1.18353756]
[1750001951686,0.004,105890.0,105880.0,1.18353755]
[1750001952333,0.004,105890.0,105880.0,1.24014597]
[1750001952544,0.004,105890.0,105880.0,1.24014596]
[1750001952761,0.004,105890.0,105880.0,1.24014591]
[1750001953391,0.004,105890.0,105880.0,1.24014581]
[1750001953613,0.004,105890.0,105880.0,1.22242886]
[1750001953864,0.004,105890.0,105880.0,1.04706597]
[1750001954047,0.004,105890.0,105880.0,1.24014598]
[1750001954505,0.004,105890.0,105880.0,1.24014597]
[1750001954722,0.004,105890.0,105880.0,1.24010596]
[1750001954927,0.004,105890.0,105880.0,1.24010592]
[1750001955154,0.004,105890.0,105880.0,1.24010593]
[1750001955373,0.004,105890.0,105880.0,1.24010592]
[1750001955572,0.004,105890.0,105880.0,1.22238886]
[1750001955795,0.004,105890.0,105880.0,1.24010592]
[1750001956356,0.004,105890.0,105880.0,1.22238886]
[1750001956566,0.004,105890.0,105880.0,1.24010596]
[1750001956780,0.004,105890.0,105880.0,1.22238886]
[1750001956991,0.004,105890.0,105880.0,1.24010597]
[1750001957419,0.004,105890.0,105880.0,1.22238886]
[1750001957634,0.004,105890.0,105880.0,1.24010597]
[1750001958263,0.004,105890.0,105880.0,1.24010596]
[1750001958476,0.004,105890.0,105880.0,1.22238886]
[1750001959311,0.004,105890.0,105880.0,1.24010596]
[1750001959524,0.004,105890.0,105880.0,1.26006822]
[1750001959730,0.004,105890.0,105880.0,0.6748977]
[1750001959944,0.004,105890.0,105880.0,1.27778532]
[1750001960167,0.004,105890.0,105880.0,1.26006822]
[1750001960596,0.004,105890.0,105880.0,1.27771642]
[1750001960801,0.004,105890.0,105880.0,1.26006822]
[1750001961012,0.004,105890.0,105880.0,1.27771642]
[1750001962602,0.004,105890.0,105880.0,1.24003699]
[1750001962824,0.004,105890.0,105880.0,0.65717356]
[1750001963045,0.004,105890.0,105880.0,1.27770929]
[1750001963261,0.004,105890.0,105880.0,1.27770936]
[1750001963471,0.004,105890.0,105880.0,1.27770915]
[1750001963683,0.004,105890.0,105880.0,1.27770925]
[1750001963865,0.004,105890.0,105880.0,1.26006118]
[1750001964317,0.004,105890.0,105880.0,1.27770937]
[1750001964606,0.004,105890.0,105880.0,1.27769618]
[1750001965740,0.004,105890.0,105880.0,1.26006118]
[1750001965963,0.004,105890.0,105880.0,1.06702118]
[1750001966173,0.004,105890.0,105880.0,1.26002118]
[1750001966385,0.004,105890.0,105880.0,1.27765636]
[1750001966594,0.004,105890.0,105880.0,1.26002118]
[1750001966861,0.004,105890.0,105880.0,1.27765637]
[1750001967769,0.004,105890.0,105880.0,1.22234886]
[1750001968247,0.004,105890.0,105880.0,1.56234886]
[1750001968475,0.004,105890.0,105880.0,2.28420077]
[1750001968699,0.002,105890.0,105880.0,2.32813809]
[1750001968936,8.928e-05,105900.0,105890.0,0.65304629]
[1750001969173,8.928e-05,105900.0,105890.0,2.04802735]
[1750001969389,8.928e-05,105900.0,105890.0,1.44513973]
[1750001969613,8.928e-05,105900.0,105890.0,1.6381397]
[1750001970079,8.928e-05,105900.0,105890.0,1.62050821]
[1750001970307,8.928e-05,105900.0,105890.0,1.64887921]
[1750001970529,0.00108928,105900.0,105890.0,1.64887921]
[1750001970723,0.00208928,105900.0,105890.0,1.64887921]
[1750001973112,0.00208928,105900.0,105890.0,1.94377921]
[1750001973335,0.00208928,105900.0,105890.0,1.96141079]
[1750001973770,0.00208928,105900.0,105890.0,1.97164287]
[1750001973993,0.00208928,105900.0,105890.0,1.98927445]
[1750001974208,0.00208928,105900.0,105890.0,1.98927435]
[1750001974656,0.00208928,105900.0,105890.0,1.38634671]
[1750001974879,0.00208928,105900.0,105890.0,1.98923438]
[1750001975116,0.00208928,105900.0,105890.0,1.65331033]
[1750001975364,0.6049769,105900.0,105890.0,0.79599314]
[1750001975594,0.6360769,105900.0,105890.0,0.39778129]
[1750001975821,1.25888149,105900.0,105890.0,0.37896489]
[1750001976046,0.65599387,105900.0,105890.0,0.53278314]
[1750001976275,0.6360769,105900.0,105890.0,0.53278314]
[1750001976710,0.6360769,105900.0,105890.0,0.54732399]
[1750001976943,0.03318928,105900.0,105890.0,0.54732399]
[1750001978453,0.03318928,105900.0,105890.0,0.51908208]
[1750001979370,0.03318928,105900.0,105890.0,0.57555251]
[1750001980224,0.03318928,105900.0,105890.0,0.59321709]
[1750001980431,0.03318928,105900.0,105890.0,0.57555251]
[1750001980684,0.03318928,105900.0,105890.0,0.59321707]
[1750001980897,0.03318928,105900.0,105890.0,0.57555251]
[1750001981081,0.03318928,105900.0,105890.0,0.59321707]
[1750001981721,0.03318928,105900.0,105890.0,0.59321709]
[1750001982841,0.03318928,105900.0,105890.0,0.59321707]
[1750001983064,0.03318928,105900.0,105890.0,0.57555251]
[1750001983297,0.03318928,105900.0,105890.0,0.59321707]
[1750001983730,0.03318928,105900.0,105890.0,0.57555251]
[1750001983942,0.03318928,105900.0,105890.0,0.59321707]
[1750001984512,0.03318928,105900.0,105890.0,0.59321708]
[1750001984715,0.03318928,105900.0,105890.0,0.57555251]
[1750001985417,0.03318928,105900.0,105890.0,0.59321709]
[1750001985802,0.03318928,105900.0,105890.0,0.57555251]
[1750001986035,0.03318928,105900.0,105890.0,0.59321709]
[1750001986880,0.03318928,105900.0,105890.0,0.57555251]
[1750001987104,0.03318928,105900.0,105890.0,0.59321709]
[1750001987715,0.03318928,105900.0,105890.0,0.62093862]
[1750001987896,0.03318928,105900.0,105890.0,0.60327404]
[1750001988328,0.03318928,105900.0,105890.0,0.6209386]
[1750001988928,0.03318928,105900.0,105890.0,0.62093849]
[1750001989140,0.03318928,105900.0,105890.0,0.62093851]
[1750001989343,0.03318928,105900.0,105890.0,0.62093852]
[1750001989552,0.03318928,105900.0,105890.0,0.62093856]
[1750001989962,0.03318928,105900.0,105890.0,0.59327652]
[1750001990176,0.03318928,105900.0,105890.0,0.57555251]
[1750001990382,0.03318928,105900.0,105890.0,0.59327656]
[1750001990812,0.03318928,105900.0,105890.0,0.57555251]
[1750001991235,0.03318928,105900.0,105890.0,0.59327657]
[1750001991446,0.03318928,105900.0,105890.0,0.57555251]
[1750001991665,0.03318928,105900.0,105890.0,0.59327655]
[1750001991878,0.03318928,105900.0,105890.0,0.57555251]
[1750001992093,0.03318928,105900.0,105890.0,0.59327644]
[1750001992333,0.03318928,105900.0,105890.0,0.57555251]
[1750001992788,0.03318928,105900.0,105890.0,0.59327651]
[1750001993240,0.03318928,105900.0,105890.0,0.57555251]
[1750001993697,0.03318928,105900.0,105890.0,0.59327648]
[1750001993915,0.03318928,105900.0,105890.0,0.57555251]
[1750001994386,0.03318928,105900.0,105890.0,0.59327647]
[1750001994614,0.03318928,105900.0,105890.0,0.57555251]
[1750001994835,0.03318928,105900.0,105890.0,0.53789848]
[1750001995065,0.03318928,105900.0,105890.0,0.5756299]
[1750001995299,0.01718928,105900.0,105890.0,0.55557826]
[1750001995542,0.01718928,105900.0,105890.0,0.53789848]
[1750001995778,0.01718928,105900.0,105890.0,0.5555782]
[1750001996070,0.01718928,105900.0,105890.0,0.55557802]
[1750001996316,0.01718928,105900.0,105890.0,0.55557815]
[1750001996570,0.00208928,105900.0,105890.0,1.06675213]
[1750001996792,0.00208928,105900.0,105890.0,1.06675103]
[1750001997004,0.00208928,105900.0,105890.0,1.17077423]
[1750001997257,0.00208928,105900.0,105890.0,1.1707727]
[1750001997464,0.00208928,105900.0,105890.0,1.19914445]
[1750001997681,0.00208928,105900.0,105890.0,1.18146772]
[1750001998130,0.00208928,105900.0,105890.0,1.19914551]
[1750001998329,0.00108928,105900.0,105890.0,1.18146772]
[1750001998546,0.00108928,105900.0,105890.0,1.20014553]
[1750001998766,8.928e-05,105900.0,105890.0,1.20014546]
[1750001998990,8.928e-05,105900.0,105890.0,1.20214546]
[1750001999210,8.928e-05,105900.0,105890.0,1.20214508]
[1750001999429,8.928e-05,105900.0,105890.0,1.49704513]
[1750001999861,8.928e-05,105900.0,105890.0,1.47936772]
[1750002000071,8.928e-05,105900.0,105890.0,1.49704513]
[1750002000286,8.928e-05,105900.0,105890.0,1.51596513]
[1750002000531,8.928e-05,105900.0,105890.0,1.85596491]
[1750002000761,8.928e-05,105900.0,105890.0,1.85596483]
[1750002000991,8.928e-05,105900.0,105890.0,1.92263112]
[1750002001205,8.928e-05,105900.0,105890.0,1.90495408]
[1750002001419,8.928e-05,105900.0,105890.0,1.8472985]
[1750002001632,8.928e-05,105900.0,105890.0,1.82962154]
[1750002001852,8.928e-05,105900.0,105890.0,1.84729848]
[1750002002782,8.928e-05,105900.0,105890.0,1.82962154]
[1750002002994,8.928e-05,105900.0,105890.0,1.84729848]
[1750002003217,8.928e-05,105900.0,105890.0,1.89729848]
[1750002003441,8.928e-05,105900.0,105890.0,1.89729847]
[1750002003698,8.928e-05,105900.0,105890.0,1.87962154]
[1750002003914,8.928e-05,105900.0,105890.0,1.89729846]
[1750002004136,8.928e-05,105900.0,105890.0,1.87962154]
[1750002005246,8.928e-05,105900.0,105890.0,1.25839077]
[1750002005459,8.928e-05,105900.0,105890.0,1.93616244]
[1750002005680,8.928e-05,105900.0,105890.0,1.71682244]
[1750002005894,8.928e-05,105900.0,105890.0,1.92754337]
[1750002006127,8.928e-05,105900.0,105890.0,1.97754339]
[1750002006352,8.928e-05,105900.0,105890.0,1.97754341]
[1750002006573,8.928e-05,105900.0,105890.0,1.90982244]
[1750002006793,8.928e-05,105900.0,105890.0,1.95982244]
[1750002007006,8.928e-05,105900.0,105890.0,1.89458612]
[1750002007213,8.928e-05,105900.0,105890.0,1.90988622]
[1750002007447,8.928e-05,105900.0,105890.0,1.89216515]
[1750002007687,8.928e-05,105900.0,105890.0,1.90988612]
[1750002008339,8.928e-05,105900.0,105890.0,1.90988602]
[1750002008556,8.928e-05,105900.0,105890.0,1.89216515]
[1750002008788,8.928e-05,105900.0,105890.0,1.909886]
[1750002009013,8.928e-05,105900.0,105890.0,1.90988604]
[1750002009204,8.928e-05,105900.0,105890.0,1.90988602]
[1750002009419,8.928e-05,105900.0,105890.0,1.71688602]
[1750002009636,8.928e-05,105900.0,105890.0,1.89220515]
[1750002009860,8.928e-05,105900.0,105890.0,1.90992603]
[1750002010166,8.928e-05,105900.0,105890.0,1.89220515]
[1750002010515,8.928e-05,105900.0,105890.0,1.90992602]
[1750002011313,8.928e-05,105900.0,105890.0,1.89220515]
[1750002011809,8.928e-05,105900.0,105890.0,1.8498647]
[1750002012024,8.928e-05,105900.0,105890.0,1.9766101]
[1750002012235,7.54e-06,105900.0,105890.0,1.9443283]
[1750002012448,7.54e-06,105900.0,105890.0,1.99432848]
[1750002012668,7.54e-06,105900.0,105890.0,1.9766101]
[1750002012884,7.54e-06,105900.0,105890.0,1.99432878]
[1750002013104,0.0315,105920.0,105910.0,0.21470829]
[1750002013318,0.0315,105920.0,105910.0,0.52094786]
[1750002013533,0.0315,105920.0,105910.0,0.53866634]
[1750002013754,0.0315,105920.0,105910.0,0.53866691]
[1750002013975,0.0315,105920.0,105910.0,0.52094786]
[1750002014186,0.0315,105920.0,105910.0,0.53866712]
[1750002014395,0.0335,105920.0,105910.0,0.53866736]
[1750002014605,0.0365,105920.0,105910.0,0.53866718]
[1750002014828,0.0365,105920.0,105910.0,0.53866736]
[1750002015043,0.0365,105920.0,105910.0,0.53986786]
[1750002015269,0.0365,105920.0,105910.0,0.52094786]
[1750002015489,0.0365,105920.0,105910.0,0.53866774]
[1750002015698,0.0365,105920.0,105910.0,0.52094786]
[1750002015910,0.0365,105920.0,105910.0,0.54813971]
[1750002016115,0.0365,105920.0,105910.0,0.54813974]
[1750002016323,0.0365,105920.0,105910.0,0.53041986]
[1750002016545,0.0365,105920.0,105910.0,0.56577459]
[1750002016771,0.0365,105920.0,105910.0,0.54805472]
[1750002016990,0.0365,105920.0,105910.0,0.53041986]
[1750002017205,0.0365,105920.0,105910.0,0.54805476]
[1750002017424,0.0365,105920.0,105910.0,0.548055]
[1750002017649,0.0365,105920.0,105910.0,0.53041986]
[1750002017896,0.0365,105920.0,105910.0,0.54805499]
[1750002018117,0.0365,105920.0,105910.0,0.54805498]
[1750002018542,0.0365,105920.0,105910.0,0.54805501]
[1750002018760,0.0365,105920.0,105910.0,0.54805499]
[1750002018976,0.0365,105920.0,105910.0,0.53041986]
[1750002019243,0.0365,105920.0,105910.0,0.54805497]
[1750002019448,0.0365,105920.0,105910.0,0.53041986]
[1750002019659,0.0365,105920.0,105910.0,0.54805493]
[1750002019871,0.0365,105920.0,105910.0,0.53041986]
[1750002020085,0.0365,105920.0,105910.0,0.54805493]
[1750002020526,0.0365,105920.0,105910.0,0.54805499]
[1750002020734,0.0365,105920.0,105910.0,0.54805492]
[1750002020970,0.0365,105920.0,105910.0,0.54805487]
[1750002021203,0.0365,105920.0,105910.0,0.54805493]
[1750002021459,0.0365,105920.0,105910.0,0.54805492]
[1750002021753,0.0365,105920.0,105910.0,0.54805489]
[1750002022001,0.0365,105920.0,105910.0,0.53041986]
[1750002022232,0.0365,105920.0,105910.0,0.54805489]
[1750002022890,0.0365,105920.0,105910.0,0.54805486]
[1750002023138,0.0365,105920.0,105910.0,0.54805494]
[1750002023426,0.0365,105920.0,105910.0,0.53041986]
[1750002023646,0.0365,105920.0,105910.0,0.54805492]
[1750002023871,0.0365,105920.0,105910.0,0.54805491]
[1750002024092,0.0365,105920.0,105910.0,0.53041986]
[1750002024309,0.0365,105920.0,105910.0,0.54805491]
[1750002024753,0.0365,105920.0,105910.0,0.54813995]
[1750002025425,0.0365,105920.0,105910.0,0.53041986]
[1750002026090,0.0365,105920.0,105910.0,0.54813998]
[1750002026333,0.0365,105920.0,105910.0,0.49158217]
[1750002026544,0.0365,105920.0,105910.0,0.47386205]
[1750002027682,0.0365,105920.0,105910.0,0.4915822]
[1750002028121,0.0365,105920.0,105910.0,0.49158219]
[1750002029001,0.63881068,105920.0,105910.0,0.49158217]
[1750002029240,0.0365,105920.0,105910.0,0.49158217]
[1750002029462,0.63881068,105920.0,105910.0,0.49158207]
[1750002030068,0.63881068,105920.0,105910.0,0.47386205]
[1750002030267,0.63881068,105920.0,105910.0,0.48211009]
[1750002030517,0.63881068,105920.0,105910.0,0.46439005]
[1750002030795,0.0365,105920.0,105910.0,1.15983127]
[1750002031012,0.0365,105920.0,105910.0,1.15983099]
[1750002031458,0.0365,105920.0,105910.0,1.15983084]
[1750002031691,0.0365,105920.0,105910.0,1.14211115]
[1750002031907,0.0365,105920.0,105910.0,1.15139085]
[1750002032571,0.0365,105920.0,105910.0,1.16911041]
[1750002032790,0.0365,105920.0,105910.0,1.16911038]
[1750002033235,0.0365,105920.0,105910.0,1.16911041]
[1750002033465,0.0365,105920.0,105910.0,1.16911038]
[1750002034344,0.0365,105920.0,105910.0,1.15139085]
[1750002034568,0.0365,105920.0,105910.0,1.16911017]
[1750002034831,0.0365,105920.0,105910.0,0.54908017]
[1750002035051,0.0365,105920.0,105910.0,1.16911015]
[1750002035492,0.0365,105920.0,105910.0,1.16911009]
[1750002035718,0.0214,105920.0,105910.0,1.16911009]
[1750002035951,0.0214,105920.0,105910.0,1.15139085]
[1750002036182,0.0214,105920.0,105910.0,1.16911002]
[1750002036641,0.0214,105920.0,105910.0,1.15139085]
[1750002036899,0.002,105920.0,105910.0,1.18490975]
[1750002037150,0.0417,105930.0,105920.0,0.23168478]
[1750002037413,0.04178925,105930.0,105920.0,1.04524575]
[1750002037652,0.04178925,105930.0,105920.0,1.0629352]
[1750002037888,0.04178925,105930.0,105920.0,1.04524575]
[1750002038352,0.04478925,105930.0,105920.0,1.06293518]
[1750002038577,0.04478925,105930.0,105920.0,1.04524575]
[1750002039037,0.04478925,105930.0,105920.0,0.46062435]
[1750002039266,0.04478925,105930.0,105920.0,0.46062448]
[1750002039486,0.04678925,105930.0,105920.0,0.46062451]
[1750002039695,0.04678925,105930.0,105920.0,0.46062461]
[1750002039918,0.03168925,105930.0,105920.0,0.46062461]
[1750002040342,0.03168925,105930.0,105920.0,0.46062417]
[1750002040550,0.03168925,105930.0,105920.0,0.44293507]
[1750002041001,0.03168925,105930.0,105920.0,0.46062419]
[1750002041424,0.03168925,105930.0,105920.0,0.44293507]
[1750002041643,0.03168925,105930.0,105920.0,0.46062419]
[1750002041849,0.03168925,105930.0,105920.0,0.44293507]
[1750002042285,0.03168925,105930.0,105920.0,0.46062416]
[1750002042540,0.03168925,105930.0,105920.0,0.44293507]
[1750002042728,0.03168925,105930.0,105920.0,0.46062409]
[1750002043395,0.03168925,105930.0,105920.0,0.44293507]
[1750002043611,0.01508925,105930.0,105920.0,0.460624]
[1750002044101,0.01508925,105930.0,105920.0,0.46062417]
[1750002044323,0.01508925,105930.0,105920.0,0.44293507]
[1750002044545,0.04798925,105930.0,105920.0,0.46062423]
[1750002044739,0.04798925,105930.0,105920.0,0.44293507]
[1750002044984,0.04798925,105930.0,105920.0,0.46062423]
[1750002045624,0.03168925,105930.0,105920.0,0.46062423]
[1750002046471,0.03168925,105930.0,105920.0,0.36740654]
[1750002046910,0.03168925,105930.0,105920.0,0.38494307]
[1750002047344,0.03168925,105930.0,105920.0,0.36722645]
[1750002047553,0.03168925,105930.0,105920.0,0.38494306]
[1750002047981,0.03168925,105930.0,105920.0,0.36722645]
[1750002048201,0.03168925,105930.0,105920.0,0.38494428]
[1750002048661,0.03168925,105930.0,105920.0,0.53834428]
[1750002048899,0.03168925,105930.0,105920.0,0.52062645]
[1750002049790,0.03168925,105930.0,105920.0,0.53834429]
[1750002050002,0.03168925,105930.0,105920.0,0.53834428]
[1750002050277,0.03168925,105930.0,105920.0,0.52062645]
[1750002050494,0.03168925,105930.0,105920.0,0.53834428]
[1750002050706,0.03168925,105930.0,105920.0,0.52062645]
[1750002050939,0.03168925,105930.0,105920.0,0.53834428]
[1750002052031,0.03168925,105930.0,105920.0,0.52062645]
[1750002052483,0.03168925,105930.0,105920.0,0.53834428]
[1750002052931,0.03168925,105930.0,105920.0,0.52062645]
[1750002053579,0.03168925,105930.0,105920.0,0.53834428]
[1750002054257,0.03168925,105930.0,105920.0,0.53804442]
[1750002054672,0.04678925,105930.0,105920.0,0.61357292]
[1750002054885,0.04678925,105930.0,105920.0,0.61357291]
[1750002055110,0.04678925,105930.0,105920.0,0.59585512]
[1750002055546,0.04678925,105930.0,105920.0,0.52032659]
[1750002055970,0.04678925,105930.0,105920.0,0.53804394]
[1750002056207,0.04678925,105930.0,105920.0,0.6135177]
[1750002056433,0.04678925,105930.0,105920.0,0.61351774]
[1750002056671,0.04678925,105930.0,105920.0,1.13098627]
[1750002056890,0.04678925,105930.0,105920.0,1.14867955]